Cogmind - Beta 13 @@@ ROGUE MODE // 2024.04.23 @ 04:59:22 Player: osman sinnoks Result: Destroyed by S-10 Pest with Light Assault Rifle Performance ------------- Evolutions (0) 0 Regions Visited (2) 400 Robots Destroyed (17) 85 Value Destroyed (261) 261 Prototype IDs (0) 0 Alien Tech Used (0) 0 Bonus (0) 0 TOTAL SCORE: 746 Bonus ------- None Cogmind --------- Core Integrity 0/250 Matter 300/300 Energy 98/100 System Corruption 0% Temperature Cool (0) Movement Core (50) Location -10/Mines Parts ------- > --- POWER (1) -------- (None) > --- PROPULSION (2) --- (None) > --- UTILITY (2) ------ Signal Interpreter > --- WEAPON (2) ------- Hammer > --- INVENTORY (5) ---- Light Nuclear Core Aluminum Leg Flight Unit Improved Heat Sink Peak State ------------ > --- POWER ------------ Ion Engine > --- PROPULSION ------- Aluminum Leg Aluminum Leg > --- UTILITY ---------- Signal Interpreter Seismic Detector > --- WEAPON ----------- Assault Rifle Light Cannon > --- INVENTORY -------- Light Nuclear Core Improved Heat Sink Light Assault Rifle Hammer [Rating: 7] Favorites ----------- Power Ion Engine Engine Ion Engine Propulsion Aluminum Leg Leg Aluminum Leg Flight Unit Flight Unit Utility Seismic Detector Device Seismic Detector Processor Signal Interpreter Weapon Assault Rifle Energy Gun Medium Laser Ballistic Gun Assault Rifle Ballistic Cannon Light Cannon Impact Weapon Hammer Build | -11 -10 -10 ------- Run | Yrd Mat Min Slots Evolved . | . . . Power . | . . . Propulsion . | . . . Utility . | . . . Weapon . | . . . Parts Attached 20 | 6 8 6 Power 2 | 1 1 . Engine 2 | 1 1 . Core . | . . . Reactor . | . . . Propulsion 9 | 2 4 3 Treads . | . . . Leg 6 | 2 4 . Wheel . | . . . Hover . | . . . Flight 3 | . . 3 Utility 2 | 1 1 . Device 1 | 1 . . Storage . | . . . Processor 1 | . 1 . Hackware . | . . . Protection . | . . . Artifact . | . . . Weapon 7 | 2 2 3 Energy Gun 1 | 1 . . Energy Cannon . | . . . Ballistic Gun 4 | 1 1 2 Ballistic Cannon 1 | . 1 . Launcher . | . . . Special Weapon . | . . . Impact Weapon 1 | . . 1 Slashing Weapon . | . . . Piercing Weapon . | . . . Special Melee Weapon . | . . . Unidentified Prototypes . | . . . Parts Lost 5 | . . 5 Power 1 | . . 1 Propulsion 2 | . . 2 Utility 1 | . . 1 Weapon 1 | . . 1 Highest Loss Streak 5 | . . 5 To Critical Strikes . | . . . Average Slot Usage (%) 84 | . 91 72 Engine 12 | . 14 10 Leg 18 | . 28 2 Flight 5 | . . 15 Device 12 | . 14 11 Processor 9 | . 7 14 Energy Gun 4 | . 6 . Ballistic Gun 9 | . 12 4 Ballistic Cannon 5 | . 7 . Impact Weapon 4 | . . 12 Naked Turns . | . . . Heaviest Build 11 | 9 11 11 Greatest Support 20 | 20 20 20 Greatest Overweight (x) 2 | . . 2 Average Overweight (x) . | . . . Largest Inventory Capacity 5 | 5 5 5 Average Capacity 5 | 5 5 5 Most Carried 5 | 4 5 5 Average Carried 3 | 1 3 4 Final Capacity 5 | 5 5 5 Final Carried 4 | 3 4 4 Class Distribution -------------------- 78% | Mutant 21% | Scavenger-Mutant Dominant Class ---------------- Mutant | -10/Materials Scavenger-Mutant | -10/Mines Resources | -11 -10 -10 ----------- Run | Yrd Mat Min Matter Collected 482 | 264 146 72 Remotely . | . . . Salvage Created 472 | 167 191 114 Parts 34 | 12 17 5 Haulers Intercepted . | . . . Recyclers Shooed 2 | . 1 1 Parts Field Recycled . | . . . Retrieved Matter . | . . . Parts Self-Destructed . | . . . Prevented . | . . . Kills | -11 -10 -10 ------- Run | Yrd Mat Min Combat Hostiles Destroyed 9 | . 4 5 Melee 1 | . . 1 Guns 2 | . 2 . Cannons 4 | . 2 2 Classes Destroyed 6 | 2 3 1 Worker 2 | . 1 1 Tunneler 4 | 3 . 1 Recycler 1 | 1 . . Watcher 1 | . 1 . Swarmer 5 | . . 5 Grunt 4 | . 4 . Best Kill Streak 3 | 3 3 3 Combat Bots Only 3 | . 2 3 Max Kills in Single Turn 2 | 2 1 1 Gunslinging . | . . . Exploded . | . . . Melee 1 | . . 1 Uniques/NPCs Destroyed . | . . . Combat | -11 -10 -10 -------- Run | Yrd Mat Min Hostile Shots Fired 106 | . 22 84 Missed 26 | . 5 21 Damage Taken 724 | . 201 523 Core 256 | . 34 222 Absorbed by Shields . | . . . Core Remaining (%) 100 | 100 . . Volleys Fired 29 | 4 18 7 Largest 2 | 2 2 2 Hottest 70 | 70 70 55 Shots Fired 50 | 8 32 10 Gun 41 | 8 26 7 Cannon 9 | . 6 3 Launcher . | . . . Special . | . . . Kinetic 34 | 4 20 10 Thermal 16 | 4 12 . Explosive . | . . . Electromagnetic . | . . . Robot Hit Streak 9 | 4 9 5 Robot Miss Streak 4 | 2 1 4 Penetration Max . | . . . Secondary Targets 1 | . 1 . Max Gunslinging Chain 1 | . 1 . Shots Hit Robots 44 | 6 21 17 Core Hits 18 | 6 9 3 Critical Kills . | . . . Critical Parts Destroyed 1 | . . 1 Critical Strikes 2 | . 1 1 Burn 1 | . 1 . Smash 1 | . . 1 Melee Attacks 19 | . . 19 Impact 19 | . . 19 Slashing . | . . . Piercing . | . . . Sneak Attacks 2 | . . 2 Combat Hostiles . | . . . Follow-up Attacks . | . . . Damage Inflicted 863 | 87 282 494 Guns 349 | 87 226 36 Cannons 94 | . 56 38 Explosions . | . . . Melee 420 | . . 420 Ramming . | . . . Kinetic 308 | 37 197 74 Thermal 135 | 50 85 . Explosive . | . . . Electromagnetic . | . . . Impact 420 | . . 420 Slashing . | . . . Piercing . | . . . Highest Corruption . | . . . Average Corruption . | . . . Corruption Purged . | . . . Corruption Blocked . | . . . Overload Shots . | . . . Overflow Damage 101 | . . 101 Projectiles . | . . . Explosions . | . . . Melee 101 | . . 101 Knockbacks 4 | . 1 3 Impact 2 | . . 2 Kinetic 1 | . 1 . Secondary 1 | . . 1 Self-Inflicted Damage . | . . . Shots . | . . . Rammed . | . . . Targets Rammed . | . . . Kicked . | . . . Crushed . | . . . Highest Temperature 185 | 40 185 2 Average Temperature 67 | 19 85 1 Received Heat Transfer 135 | . 114 21 Siege Activations . | . . . Robots Corrupted . | . . . Combat Hostiles . | . . . Parts Fried 6 | . . 6 Impact Corruptions 7 | . . 7 Robots Melted . | . . . Combat Hostiles . | . . . Parts Melted . | . . . Heat Transferred 481 | 148 333 . Parts Sabotaged . | . . . Parts Stolen . | . . . Parts Stripped . | . . . Power Chain Reactions . | . . . Alert | -11 -10 -10 ------- Run | Yrd Mat Min Peak Influence 195 | 20 155 195 Initial 60 | . 13 60 Average 89 | 7 77 147 Maximum Alert Level . | . . . Low Security (%) 100 | 100 100 100 Level 1 . | . . . Level 2 . | . . . Level 3 . | . . . Level 4 . | . . . Level 5 . | . . . High Security . | . . . Max Security . | . . . Squads Dispatched 2 | . 2 . Investigation . | . . . Extermination . | . . . Reinforcement 2 | . 2 . Assault . | . . . Garrison . | . . . Intercept . | . . . Searches Triggered . | . . . Construction Impeded . | . . . Haulers Reinforced . | . . . Active Scanning Responses . | . . . Cargo Convoy Interrupts . | . . . Stealth | -11 -10 -10 --------- Run | Yrd Mat Min Distress Signals 1 | . 1 . Communications Jammed . | . . . Distress Signals . | . . . Times Spotted 16 | . 5 11 Peak Tracking Total 5 | . 2 5 Tactical Retreats . | . . . Traps | -11 -10 -10 ------- Run | Yrd Mat Min Traps Triggered . | . . . Indirectly . | . . . Trap Hack Attempts . | . . . Triggered . | . . . Disarmed . | . . . Reprogrammed . | . . . Reused . | . . . Traps Extracted . | . . . Installed . | . . . Triggered . | . . . Machines | -11 -10 -10 ---------- Run | Yrd Mat Min Machines Disabled 1 | . 1 . Max in Single Turn 1 | . 1 . Machines Repaired . | . . . Machines Dismantled . | . . . Machines Sabotaged . | . . . Overloaded Fab Kills . | . . . Hacking | -11 -10 -10 --------- Run | Yrd Mat Min Machines Accessed 2 | . 2 . Terminals 1 | . 1 . Fabricators . | . . . Repair Stations . | . . . Recycling Units 1 | . 1 . Scanalyzers . | . . . Garrison Access . | . . . Total Hacks 3 | . 3 . Successful 2 | . 2 . Failed 1 | . 1 . Catastrophic 1 | . 1 . Database Lockouts . | . . . Manual . | . . . Terminals 2 | . 2 . Fabricators . | . . . Repair Stations . | . . . Recycling Units 1 | . 1 . Scanalyzers . | . . . Garrison Access . | . . . Terminal Hacks 1 | . 1 . Transport Status 1 | . 1 . Fabricator Hacks . | . . . Repair Station Hacks . | . . . Recycling Unit Hacks 1 | . 1 . Report Inventory 1 | . 1 . Scanalyzer . | . . . Garrison Access Hacks . | . . . Unauthorized Hacks . | . . . Terminals . | . . . Fabricators . | . . . Repair Stations . | . . . Recycling Units . | . . . Scanalyzers . | . . . Garrison Access . | . . . Data Cores Recovered . | . . . Used . | . . . Hacking Detections 2 | . 2 . Full Trace Events . | . . . Feedback Events . | . . . Feedback Blocked . | . . . Robot Schematics Acquired . | . . . Robots Built . | . . . Authchips . | . . . Time . | . . . Total Robot Build Rating . | . . . Part Schematics Acquired . | . . . Parts Built . | . . . Authchips . | . . . Time . | . . . Total Part Build Rating . | . . . Parts Repaired . | . . . Time . | . . . Parts Recycled . | . . . Recycled Matter . | . . . Retrieved Matter . | . . . Retrieved Components . | . . . Parts Scanalyzed . | . . . Part Schematics Acquired . | . . . Parts Damaged . | . . . Bothacking | -11 -10 -10 ------------ Run | Yrd Mat Min Used RIF Installer . | . . . Robots Hacked . | . . . Non-combat . | . . . Combat . | . . . Robot Hacks Applied . | . . . Relay Couplers Released . | . . . Fabnet Peak Effective % . | . . . Robots Rewired . | . . . Allies Hacked . | . . . Hacks Repelled . | . . . Allies | -11 -10 -10 -------- Run | Yrd Mat Min Total Allies . | . . . Largest Group . | . . . Highest-Rated Group . | . . . Highest-Rated Ally . | . . . Total Orders . | . . . Ally Attacks . | . . . Total Damage . | . . . Kills . | . . . Allies Corrupted . | . . . Allies Melted . | . . . Intel | -11 -10 -10 ------- Run | Yrd Mat Min Robot Analysis Total . | . . . Derelict Logs Recovered 1 | . . 1 Drone Launches . | . . . Drone Recoveries . | . . . Exploration | -11 -10 -10 ------------- Run | Yrd Mat Min Turns Passed 486 | 72 261 153 Spaces Moved 366 | 47 158 161 Core 61 | 14 . 47 Treads . | . . . Legs 194 | 33 158 3 Wheels . | . . . Hover . | . . . Flight 111 | . . 111 Fastest Speed 37 | 50 120 37 Average Speed 84 | 99 120 45 Slowest Speed 200 | 120 120 200 Overloaded Moves . | . . . Propulsion Burnouts . | . . . Robots Hopped . | . . . Cave-ins Triggered . | . . . Exploration Rate (%) 30 | 4 33 54 Regions Visited 2 Branch Regions 1 Pre-discovered Areas . | . . . Known Exits Taken 1 | . 1 . Unknown Exits Taken 1 | 1 . . Scrap Searched 1 | . . 1 Spaces Dug . | . . . Terrain Destroyed . | . . . Melee . | . . . Projectile . | . . . AOE . | . . . Terrain Rammed . | . . . Walls Destroyed . | . . . Machines Disabled . | . . . Actions | -11 -10 -10 --------- Run | Yrd Mat Min Total 463 | 65 198 200 Wait . | . . . Move 364 | 46 157 161 Hop . | . . . Pick Up 19 | 9 8 2 Fast Attach 2 | . 1 1 Attach 11 | 6 2 3 Detach 1 | . . 1 Swap 7 | . 5 2 Drop 11 | . 7 4 Fire 29 | 4 18 7 Melee 19 | . . 19 Ram . | . . . Kick . | . . . Crush . | . . . Escape Stasis . | . . . Rewire . | . . . Trap . | . . . Miscellaneous . | . . . Route ------- -11/Scrapyard -10/Materials -10/Mines (discovered 1 exit: [*Mat]) History --------- Turn | Location | Event 7 | -11/Scrapyard | Discovered new exit (range 16) 73 | -11/Scrapyard | Entered Materials 314 | -10/Materials | Build established: Mutant 314 | -10/Materials | Discovered new exit (range 10) 332 | -10/Materials | Identified exit to Mines 334 | -10/Materials | Entered Mines 438 | -10/Mines | Core integrity fell below 50% 447 | -10/Mines | Core integrity fell below 20% 485 | -10/Mines | Discovered new exit (range 8) 487 | -10/Mines | Destroyed by S-10 Pest with Light Assault Rifle Last Messages --------------- S-10 Pest destroyed. Seismic Detector destroyed. K-01 Serf collects debris. Destroyed Flight Unit. S-10 Pest system corrupted by crushing effect. S-10 Pest system terminally corrupted. Flight Unit fried. Lgt. Ion Engine fried. K-01 Serf collects debris. Lgt. Assault Rifle destroyed. Searching scrap... Found 21 Matter. Found 11 Matter. Found Tractor Beam. Found Lgt. Ion Engine. Found 41 Matter. Acquired derelict log, extracted data. Data stored: Storage entrances (x1). EXIT=FOUND Map ----- +----------------------------------------------------+ | ?????????????????????????????????? | | ?????????????????????????????????? | | ?????????????????????????????????? | | ?????????????????????????????????? | | ?????????????????????????????????? | | ?????????????????????????????????? | | ?????????????????????????????????? | | ?????????????????????????????????? | | ?????????????????????????????????? | | ?????????????????????????????????? | | ????????????? #?????????????????? | | ????????????? ##???????????????? | | ????????????? ##??????????????? | | ????????????? #####??????????? | | ????????????? ##?????????? | | ????????????? ##????????? | | ????????????? #????????? | | ????????????? ?????????? | | ????????????? ?????????? | | ?????????????# ??????????? | | ?????????????# ???????????? | | ????????????## ?????????????? | | ??#######??## #???????????????? | | ??# ### #????????????????? | | ??# #????????????????? | | ??# @ ##???????????? ??? | | ??# s